bitfinex/quotes_BTCUSD_20250513
["timestamp","ask_amount","ask_price","bid_price","bid_amount"]
[1747099182737,0.2705864,102670.0,102660.0,1.14600152]
[1747099182941,0.2705864,102670.0,102660.0,0.50511382]
[1747099183146,0.2705864,102670.0,102660.0,0.75574231]
[1747099183780,0.2705864,102670.0,102660.0,0.2908143]
[1747099184799,0.26084675,102670.0,102660.0,0.2908143]
[1747099185559,0.26084675,102670.0,102660.0,0.30055519]
[1747099186213,0.26084675,102670.0,102660.0,0.19496]
[1747099187250,0.26084675,102670.0,102660.0,0.38977784]
[1747099187457,0.04488734,102670.0,102660.0,0.86133645]
[1747099187721,0.05462718,102670.0,102660.0,0.86133645]
[1747099187923,0.06436617,102670.0,102660.0,0.86133645]
[1747099188263,0.04488677,102670.0,102660.0,0.86133645]
[1747099188477,0.05462633,102670.0,102660.0,0.86133645]
[1747099188896,0.06436608,102670.0,102660.0,0.86133645]
[1747099189742,0.02540813,102670.0,102660.0,1.22639064]
[1747099189939,0.03514721,102670.0,102660.0,1.22639064]
[1747099190172,0.05462623,102670.0,102660.0,0.96036215]
[1747099190377,0.0455405,102670.0,102660.0,0.96036215]
[1747099190867,0.05528025,102670.0,102660.0,0.96036215]
[1747099191075,0.25981906,102670.0,102660.0,0.96036234]
[1747099191328,0.25614061,102670.0,102660.0,0.0958543]
[1747099191553,0.26150096,102670.0,102660.0,0.2908143]
[1747099191957,0.26150096,102670.0,102660.0,0.39951873]
[1747099192395,0.26150096,102670.0,102660.0,0.40925952]
[1747099192599,0.26150096,102670.0,102660.0,0.41900022]
[1747099192735,0.27060112,102670.0,102660.0,0.41900022]
[1747099193911,0.27060112,102670.0,102660.0,0.21429952]
[1747099194124,0.22929952,102660.0,102650.0,1.27522827]
[1747099194344,0.22929952,102660.0,102650.0,0.76736279]
[1747099194554,0.24459952,102660.0,102650.0,0.2908143]
[1747099194766,0.24459952,102660.0,102650.0,0.19496]
[1747099195180,0.25369968,102660.0,102650.0,0.19496]
[1747099195659,0.28464249,102660.0,102650.0,0.19496]
[1747099195853,0.25369968,102660.0,102650.0,0.19496]
[1747099201174,0.25369968,102660.0,102650.0,0.20470184]
[1747099201418,0.24395889,102660.0,102650.0,0.19496]
[1747099201628,0.24395889,102660.0,102650.0,0.39953856]
[1747099202037,0.24395889,102660.0,102650.0,0.19496]
[1747099202470,0.234218,102660.0,102630.0,0.44550328]
[1747099202615,0.01948434,102640.0,102630.0,1.1057339]
[1747099203272,0.01948425,102640.0,102630.0,1.1057339]
[1747099203510,0.01948425,102640.0,102630.0,1.1087339]
[1747099203723,0.03896916,102640.0,102630.0,0.7687339]
[1747099203926,0.04871185,102640.0,102630.0,0.7687339]
[1747099204056,0.04871185,102640.0,102630.0,0.7657339]
[1747099204263,0.00974203,102640.0,102630.0,0.7657339]
[1747099204485,0.01948425,102640.0,102630.0,0.7657339]
[1747099204692,0.03044032,102660.0,102640.0,0.20459802]
[1747099204893,0.04396156,102660.0,102650.0,0.47468968]
[1747099205240,0.005,102660.0,102650.0,0.76554398]
[1747099205439,0.00974003,102660.0,102650.0,0.79734398]
[1747099205598,0.02922066,102660.0,102650.0,0.79734398]
[1747099205813,0.03522066,102660.0,102650.0,0.79734398]
[1747099205977,0.006,102660.0,102650.0,0.89319828]
[1747099206499,0.02548045,102660.0,102650.0,0.79734398]
[1747099206923,0.03522096,102660.0,102650.0,0.79734398]
[1747099207129,0.02548045,102660.0,102650.0,0.79734398]
[1747099207330,0.03148045,102660.0,102650.0,0.79734398]
[1747099207531,0.03148045,102660.0,102650.0,0.78084398]
[1747099207732,0.01948045,102660.0,102650.0,0.78084398]
[1747099208427,0.22960126,102670.0,102660.0,0.22403965]
[1747099208811,0.22960126,102670.0,102660.0,0.45518722]
[1747099208998,0.22960126,102670.0,102660.0,0.47466871]
[1747099210002,0.24620126,102670.0,102660.0,0.00974089]
[1747099210205,0.23871024,102670.0,102660.0,0.47466843]
[1747099210423,0.23871024,102670.0,102660.0,0.47466852]
[1747099210945,0.25381024,102670.0,102660.0,0.20455873]
[1747099211144,0.25381024,102670.0,102660.0,0.22403994]
[1747099211266,0.23971024,102670.0,102660.0,0.24352067]
[1747099211463,0.04561381,102710.0,102690.0,0.01454085]
[1747099211676,0.04561381,102710.0,102700.0,1.48951625]
[1747099211879,0.04561381,102710.0,102700.0,1.68586895]
[1747099212091,0.04561381,102710.0,102700.0,1.93649744]
[1747099212292,0.00860042,102710.0,102700.0,1.93649744]
[1747099212556,0.09809922,102740.0,102730.0,0.00973425]
[1747099212774,0.09809922,102740.0,102730.0,0.41494036]
[1747099212775,0.09809912,102740.0,102730.0,0.41494036]
[1747099212976,0.09809912,102740.0,102730.0,0.43474938]
[1747099212977,0.0888545,102740.0,102730.0,0.43474938]
[1747099213182,0.20441925,102730.0,102720.0,0.78710849]
[1747099213387,0.02920181,102730.0,102720.0,0.90223098]
[1747099213562,0.2238869,102730.0,102720.0,0.89249578]
[1747099213762,0.21415322,102730.0,102720.0,0.34648279]
[1747099213964,0.21415322,102730.0,102720.0,0.54280279]
[1747099214143,0.21415322,102730.0,102720.0,0.19632]
[1747099214348,0.22975322,102730.0,102720.0,0.19632]
[1747099214873,0.22393059,102710.0,102700.0,1.21182849]
[1747099215076,0.210323,102710.0,102690.0,0.00957009]
[1747099215251,0.20447886,102700.0,102690.0,0.0958543]
[1747099215445,0.21423654,102690.0,102680.0,0.64318849]
[1747099215650,0.20447886,102700.0,102690.0,0.21423673]
[1747099215851,0.20447886,102700.0,102690.0,0.58988971]
[1747099215852,0.01947343,102700.0,102690.0,0.58988971]
[1747099216053,0.23368948,102700.0,102690.0,0.60680634]
[1747099216256,0.21421605,102700.0,102690.0,0.35617785]
[1747099216475,0.21470358,102700.0,102690.0,0.35617785]
[1747099216656,0.20449878,102690.0,102680.0,0.84994849]
[1747099216857,0.20449878,102690.0,102680.0,0.54580279]
[1747099217292,0.20449878,102690.0,102680.0,0.2951743]
[1747099217667,0.20449878,102690.0,102680.0,0.63226666]
[1747099218098,0.20449878,102690.0,102680.0,0.64219813]
[1747099218847,0.20449878,102690.0,102680.0,0.64319813]
[1747099219012,0.20449878,102690.0,102680.0,0.64119813]
[1747099219398,0.21423654,102690.0,102680.0,0.64119813]
[1747099219601,0.21470348,102700.0,102690.0,0.21423673]
[1747099219809,0.2244401,102700.0,102690.0,0.64818339]
[1747099220067,0.21470348,102700.0,102690.0,0.63844554]
[1747099221166,0.21570348,102700.0,102690.0,0.63844554]
[1747099221809,0.24664629,102700.0,102690.0,0.43394666]
[1747099222009,0.21423654,102690.0,102680.0,1.13912372]
[1747099222255,0.21423654,102690.0,102680.0,1.03026666]
[1747099222444,0.20449878,102690.0,102680.0,0.2921743]
[1747099223697,0.20449878,102690.0,102680.0,0.30191329]
[1747099223935,0.20449878,102690.0,102680.0,0.19632]
[1747099224180,0.21979878,102690.0,102680.0,0.19732]
[1747099224637,0.21979878,102690.0,102680.0,0.63126666]
[1747099224638,0.20449878,102690.0,102680.0,0.63126666]
[1747099224892,0.20449878,102690.0,102680.0,0.84552387]
[1747099225134,0.20449878,102690.0,102680.0,0.83578535]
[1747099225801,0.20449878,102690.0,102680.0,0.83478535]
[1747099226211,0.20449878,102690.0,102680.0,0.83478554]
[1747099226982,0.20449878,102690.0,102680.0,0.84452444]
[1747099227396,0.19576093,102690.0,102680.0,0.83478554]
[1747099228448,0.19576093,102690.0,102680.0,0.64000565]
[1747099229477,0.19576093,102690.0,102680.0,0.83478554]
[1747099230402,0.19576093,102690.0,102680.0,0.63026666]
[1747099230613,0.19576093,102690.0,102680.0,0.2921743]
[1747099231581,0.2056035,102690.0,102680.0,0.2921743]
[1747099233493,0.2056035,102690.0,102680.0,0.63026666]
[1747099233967,0.2056035,102690.0,102680.0,0.2921743]
[1747099234183,0.20451869,102680.0,102670.0,0.00980555]
[1747099234371,0.20453862,102670.0,102660.0,0.2931343]
[1747099234622,0.20453862,102670.0,102660.0,0.0968543]
[1747099234623,0.21953862,102670.0,102660.0,0.0968543]
[1747099234858,0.21953862,102670.0,102660.0,0.001]
[1747099235077,0.22953576,102670.0,102660.0,0.001]
[1747099235487,0.02947654,102670.0,102660.0,0.64924571]
[1747099235700,0.2242756,102670.0,102660.0,0.43494666]
[1747099236847,0.2242756,102670.0,102660.0,0.43694666]
[1747099237052,0.2392756,102670.0,102660.0,0.003]
[1747099237260,0.2555756,102670.0,102660.0,0.001]
[1747099237466,0.2555756,102670.0,102660.0,0.002]
[1747099237855,0.2555756,102670.0,102660.0,0.25457198]
[1747099238063,0.2392756,102670.0,102660.0,0.25457198]
[1747099238274,0.2392756,102670.0,102660.0,0.25157198]
[1747099238473,0.2402756,102670.0,102660.0,0.25157198]
[1747099239783,0.2402756,102670.0,102660.0,0.001]
[1747099240397,0.2565756,102670.0,102660.0,0.001]
[1747099242275,0.2402756,102670.0,102660.0,0.25157198]
[1747099242451,0.2252756,102670.0,102660.0,0.25157198]
[1747099243037,0.2252756,102670.0,102660.0,0.001]
[1747099243594,0.23436681,102670.0,102660.0,0.001]
[1747099245021,0.26530962,102670.0,102660.0,0.001]
[1747099245174,0.25006681,102670.0,102660.0,0.001]
[1747099245373,0.26606681,102670.0,102660.0,0.001]
[1747099245845,0.25006681,102670.0,102660.0,0.001]
[1747099250173,0.23436681,102670.0,102660.0,0.25157198]
[1747099250383,0.23436681,102670.0,102660.0,0.001]
[1747099252191,0.26516681,102670.0,102660.0,0.001]
[1747099252928,0.24996681,102670.0,102660.0,0.001]
[1747099255051,0.51553879,102670.0,102660.0,0.001]
[1747099255400,0.91139309,102670.0,102660.0,0.001]
[1747099256080,1.45639912,102670.0,102660.0,0.001]
[1747099256308,1.15639912,102670.0,102660.0,0.001]
[1747099257609,1.16639912,102670.0,102660.0,0.001]
[1747099258778,1.17093997,102670.0,102660.0,0.001]
[1747099258984,1.18093997,102670.0,102660.0,0.001]
[1747099260568,1.20582714,102670.0,102660.0,0.001]
[1747099260852,1.49598111,102670.0,102660.0,0.001]
[1747099262333,1.74655309,102670.0,102660.0,0.001]
[1747099262567,1.77109394,102670.0,102660.0,0.001]
[1747099262774,1.50838128,102670.0,102660.0,0.001]
[1747099262986,1.44895326,102670.0,102660.0,0.001]
[1747099263196,0.0194868,102630.0,102620.0,0.0796666]
[1747099263480,0.22956159,102630.0,102620.0,0.0796666]
[1747099263668,0.23932993,102630.0,102620.0,0.0796666]
[1747099263905,0.24842114,102630.0,102620.0,0.0796666]
[1747099264136,0.24842114,102630.0,102620.0,0.001]
[1747099264347,0.26402114,102630.0,102620.0,0.001]
[1747099264559,0.26502114,102630.0,102620.0,0.00114636]
[1747099265032,0.66087544,102630.0,102620.0,0.00114636]
[1747099265256,1.30087544,102630.0,102620.0,0.00114636]
[1747099265462,1.55144742,102630.0,102620.0,0.00114636]
[1747099265880,1.55244742,102630.0,102620.0,0.00114636]
[1747099266805,1.56727977,102630.0,102620.0,0.00114636]
[1747099267018,1.32665486,102630.0,102620.0,0.00114636]
[1747099267470,1.31770779,102630.0,102620.0,0.00114636]
[1747099268148,1.51294779,102630.0,102620.0,0.00114636]
[1747099269048,1.47338774,102630.0,102620.0,0.00114636]
[1747099269266,1.48338774,102630.0,102620.0,0.00114636]
[1747099269933,1.49792859,102630.0,102620.0,0.00114636]
[1747099271421,1.23735661,102630.0,102620.0,0.00114636]
[1747099271647,1.54735661,102630.0,102620.0,0.00114636]
[1747099272104,0.59105349,102630.0,102620.0,0.00114636]
[1747099276342,0.59105349,102630.0,102620.0,0.01634636]
[1747099277338,0.25105349,102630.0,102620.0,0.01634636]
[1747099278391,0.24196228,102630.0,102620.0,0.01634636]
[1747099279959,0.24196228,102630.0,102620.0,0.00114636]
[1747099281703,0.25726228,102630.0,102620.0,0.00114636]
[1747099281909,0.61948856,102630.0,102620.0,0.00114636]
[1747099282118,1.25948856,102630.0,102620.0,0.00114636]
[1747099282281,1.45468856,102630.0,102620.0,0.00114636]
[1747099282483,1.46376341,102630.0,102620.0,0.00114636]
[1747099288502,1.44796341,102630.0,102620.0,0.00114636]
[1747099288738,1.19739143,102630.0,102620.0,0.00114636]
[1747099288944,1.21239143,102630.0,102620.0,0.00114636]
[1747099289404,1.78750426,102630.0,102620.0,0.00114636]
[1747099289659,1.48750426,102630.0,102620.0,0.00114636]
[1747099289874,1.76537914,102630.0,102620.0,0.00114636]
[1747099290145,1.51480716,102630.0,102620.0,0.00114636]
[1747099290832,1.51380716,102630.0,102620.0,0.00114636]
[1747099291066,1.51880716,102630.0,102620.0,0.00214636]
[1747099291305,2.45257914,102630.0,102620.0,0.00214636]
[1747099291558,2.45457914,102630.0,102620.0,0.00314636]
[1747099291867,2.20400716,102630.0,102620.0,0.00314636]
[1747099292991,2.45457914,102630.0,102620.0,0.00314636]
[1747099293173,2.15457914,102630.0,102620.0,0.00314636]
[1747099293377,2.25727914,102630.0,102620.0,0.00314636]
[1747099294057,2.25527914,102630.0,102620.0,0.00214636]
[1747099294273,2.24927914,102630.0,102620.0,0.00114636]
[1747099294485,2.25127914,102630.0,102620.0,0.00214636]
[1747099294694,2.25727914,102630.0,102620.0,0.00314636]
[1747099295348,0.56990337,102610.0,102600.0,0.001]
[1747099295575,1.06494921,102610.0,102600.0,0.001]
[1747099296499,1.31552119,102610.0,102600.0,0.001]
[1747099296708,1.31652119,102610.0,102600.0,0.003]
[1747099297342,1.31752119,102610.0,102600.0,0.005]
[1747099297763,1.33382119,102610.0,102600.0,0.005]
[1747099297979,1.36116452,102610.0,102600.0,0.005]
[1747099299236,1.33382119,102610.0,102600.0,0.005]
[1747099302024,1.36794921,102610.0,102600.0,0.005]
[1747099303275,1.35244921,102610.0,102600.0,0.005]
[1747099303517,1.36834921,102610.0,102600.0,0.005]
[1747099303991,1.35244921,102610.0,102600.0,0.005]
[1747099304488,0.85792921,102610.0,102600.0,0.005]
[1747099304727,1.05288921,102610.0,102600.0,0.005]
[1747099304955,1.06199819,102610.0,102600.0,0.0203]
[1747099309106,1.06199819,102610.0,102600.0,0.005]
[1747099309947,1.05288921,102610.0,102600.0,0.005]
[1747099311484,1.0620087,102610.0,102600.0,0.005]
[1747099312388,1.05288921,102610.0,102600.0,0.005]
[1747099312599,0.85764921,102610.0,102600.0,0.005]
[1747099314307,1.40822119,102610.0,102600.0,0.005]
[1747099314522,1.44102119,102610.0,102600.0,0.005]
[1747099315347,1.42452119,102610.0,102600.0,0.005]
[1747099316582,1.17394921,102610.0,102600.0,0.005]
[1747099316815,1.15764921,102610.0,102600.0,0.005]
[1747099317057,1.15664921,102610.0,102600.0,0.005]
[1747099317274,0.85664921,102610.0,102600.0,0.005]
[1747099317482,0.85664921,102610.0,102600.0,0.0203]
[1747099317924,0.86577855,102610.0,102600.0,0.0203]
[1747099319199,0.33181855,102610.0,102600.0,0.0363]
[1747099319417,0.04105148,102610.0,102600.0,0.37528497]
[1747099319638,0.24570912,102610.0,102600.0,0.83053492]
[1747099319846,0.24570912,102610.0,102600.0,0.58970905]
[1747099320051,0.25545542,102610.0,102600.0,0.57021674]
[1747099320267,0.23596482,102610.0,102600.0,0.28687198]
[1747099320651,0.23596482,102610.0,102600.0,0.0363]
[1747099321519,0.02156088,102610.0,102600.0,0.85746864]
[1747099321755,0.04105148,102610.0,102600.0,1.05218864]
[1747099321966,0.01243154,102610.0,102600.0,1.05218864]
[1747099322174,0.01243154,102610.0,102600.0,1.39218864]
[1747099322800,0.01243154,102610.0,102600.0,1.40672949]
[1747099323009,0.01043154,102610.0,102600.0,1.49858379]
[1747099323452,0.01043154,102610.0,102600.0,1.41072949]
[1747099323866,0.01043154,102610.0,102600.0,1.40672949]
[1747099324081,0.01143154,102610.0,102600.0,1.41072949]
[1747099324327,0.02117641,102610.0,102600.0,1.41072949]
[1747099324534,0.02217641,102610.0,102600.0,1.41772949]
[1747099324726,0.01243154,102610.0,102600.0,1.41772949]
[1747099324941,0.05141217,102610.0,102600.0,1.16236277]
[1747099325179,0.01243154,102610.0,102600.0,1.41293475]
[1747099325620,0.02217632,102610.0,102600.0,1.41293475]
[1747099325818,0.03192129,102610.0,102600.0,1.41293475]
[1747099325986,0.02217632,102610.0,102600.0,1.41293475]
[1747099326398,0.04166635,102610.0,102600.0,1.81293475]
[1747099326600,0.0514116,102610.0,102600.0,1.61821475]
[1747099326802,0.0514116,102610.0,102600.0,2.00717475]
[1747099327015,0.04166635,102610.0,102600.0,2.00717475]
[1747099327389,0.04066635,102610.0,102600.0,2.00717475]
[1747099327566,0.04066635,102610.0,102600.0,2.00713475]
[1747099328507,0.01143154,102610.0,102600.0,2.06131872]
[1747099330226,0.01143154,102610.0,102600.0,2.09546597]
[1747099330990,0.20557866,102650.0,102640.0,0.2467409]
[1747099331205,0.22286944,102650.0,102640.0,0.28297198]
[1747099331457,0.21312789,102650.0,102640.0,0.28297198]
[1747099332422,0.21712789,102650.0,102640.0,0.26637198]
[1747099332841,0.22312789,102650.0,102640.0,0.28267198]
[1747099334493,0.22312789,102650.0,102640.0,0.29232562]
[1747099334716,0.22312789,102650.0,102640.0,0.32449605]
[1747099335171,0.22312789,102650.0,102640.0,0.29232562]
[1747099336709,0.22312789,102650.0,102630.0,0.20916]
[1747099336710,0.2045984,102640.0,102630.0,0.20916]
[1747099337161,0.2110913,102640.0,102630.0,0.45973198]
[1747099338256,0.2110913,102640.0,102630.0,0.46963951]
[1747099338484,0.2110913,102640.0,102630.0,0.94012992]
[1747099338485,0.2208338,102640.0,102630.0,0.94012992]
[1747099338714,0.0064929,102640.0,102630.0,1.16106839]
[1747099338926,0.02597695,102640.0,102630.0,1.16306839]
[1747099339146,0.05520427,102640.0,102630.0,1.16306839]
[1747099339369,0.0552057,102640.0,102630.0,1.15332532]
[1747099339654,0.2500615,102640.0,102630.0,1.14358206]
[1747099339877,0.22083418,102640.0,102630.0,0.58279381]
[1747099340090,0.22083418,102640.0,102630.0,0.56749381]
[1747099340309,0.22083418,102640.0,102630.0,0.002]
[1747099340530,0.23663418,102640.0,102630.0,0.002]
[1747099341236,0.25213418,102640.0,102630.0,0.002]
[1747099341914,0.22083418,102640.0,102630.0,0.002]
[1747099342125,0.22083418,102640.0,102630.0,0.001]
[1747099342339,0.20461833,102630.0,102620.0,0.25057198]
[1747099342762,0.21114079,102630.0,102620.0,0.25057198]
[1747099343562,0.21114079,102630.0,102620.0,0.25157198]
[1747099344393,0.21114079,102630.0,102620.0,0.002]
[1747099346937,0.22624079,102630.0,102620.0,0.002]
[1747099347152,0.21114079,102630.0,102620.0,0.002]
[1747099347626,0.21114079,102630.0,102620.0,0.26807198]
[1747099348266,0.22088424,102630.0,102620.0,0.28367198]
[1747099348478,0.21114079,102630.0,102620.0,0.28367198]
[1747099349953,0.22022253,102630.0,102620.0,0.26807198]
[1747099350234,0.25116534,102630.0,102620.0,0.25257198]
[1747099350398,0.22022253,102630.0,102620.0,0.002]
[1747099350648,0.22022253,102630.0,102620.0,0.26807198]
[1747099351033,0.22022253,102630.0,102620.0,0.002]
[1747099351690,0.22022253,102630.0,102620.0,0.28367198]
[1747099352332,0.22022253,102630.0,102620.0,0.25257198]
[1747099352511,0.22022253,102630.0,102620.0,0.0175]
[1747099353792,0.22022253,102630.0,102620.0,0.08765762]
[1747099354229,0.22022253,102630.0,102620.0,0.0175]
[1747099354433,0.22022253,102630.0,102620.0,0.26807198]
[1747099354636,0.22022253,102630.0,102620.0,0.0175]
[1747099355699,0.22022253,102630.0,102620.0,0.46296576]
[1747099355844,0.0156042,102630.0,102620.0,0.61419746]
[1747099356057,0.04483389,102630.0,102620.0,0.71005176]
[1747099356799,0.04549569,102630.0,102620.0,0.71005176]
[1747099357205,0.04549569,102630.0,102620.0,0.61419746]
[1747099358589,0.01626553,102630.0,102620.0,0.61419746]
[1747099358799,0.03575233,102630.0,102620.0,0.61419746]
[1747099359196,0.03575224,102630.0,102620.0,0.61419746]
[1747099359360,0.2501144,102630.0,102620.0,0.61419765]
[1747099359815,0.05523961,102630.0,102620.0,0.62394176]
[1747099360018,0.04549654,102630.0,102620.0,0.62394176]
[1747099360219,0.02600917,102630.0,102620.0,0.6239411]
[1747099360845,0.01626544,102630.0,102620.0,0.7197954]
[1747099361114,0.00652246,102630.0,102620.0,1.2532754]
[1747099361298,0.01626544,102630.0,102620.0,1.2532754]
[1747099361520,0.02600861,102630.0,102620.0,1.2532754]
[1747099361709,0.01626544,102630.0,102620.0,1.2532754]
[1747099361905,0.0454956,102630.0,102620.0,1.2532754]
[1747099362483,0.03575206,102630.0,102620.0,1.2532754]
[1747099362664,0.03575196,102630.0,102620.0,1.2532754]
[1747099362810,0.0454955,102630.0,102620.0,1.2532754]
[1747099363465,0.03575196,102630.0,102620.0,1.2532754]
[1747099363914,0.0454955,102630.0,102620.0,1.2532754]
[1747099364844,0.03575196,102630.0,102620.0,1.2532754]
[1747099365057,0.01626544,102630.0,102620.0,1.2532754]
[1747099365260,0.0260087,102630.0,102620.0,1.2532754]
[1747099365483,0.03575215,102630.0,102620.0,1.2532754]
[1747099365681,0.0260087,102630.0,102620.0,1.2532754]
[1747099366177,0.00652246,102630.0,102620.0,1.51838823]
[1747099366428,0.02162837,102650.0,102620.0,1.55253548]
[1747099366684,0.04211157,102650.0,102640.0,0.506355]
[1747099366889,0.03236973,102650.0,102640.0,0.6022093]
[1747099367098,0.05185322,102650.0,102640.0,0.60220949]
[1747099367307,0.04211224,102650.0,102640.0,0.61210606]
[1747099367531,0.23894906,102650.0,102640.0,0.61210606]
[1747099367889,0.24294906,102650.0,102640.0,0.61210606]
[1747099368091,0.24894906,102650.0,102640.0,0.61210606]
[1747099369120,0.23920779,102650.0,102640.0,0.61210606]
[1747099369322,0.24566618,102650.0,102640.0,0.61210606]
[1747099370047,0.24566618,102650.0,102640.0,0.70796036]
[1747099370397,0.24566618,102650.0,102640.0,0.61210606]
[1747099371018,0.24566618,102650.0,102640.0,0.59660606]
[1747099371879,0.22618317,102650.0,102640.0,0.57712134]
[1747099372090,0.22618317,102650.0,102640.0,0.58686394]
[1747099372507,0.22618317,102650.0,102640.0,0.59660644]
[1747099372718,0.22618317,102650.0,102640.0,0.57712134]
[1747099372934,0.24218317,102650.0,102640.0,0.00989657]
[1747099373151,0.2045984,102640.0,102630.0,1.25179743]
[1747099373363,0.21118688,102640.0,102630.0,1.35739499]
[1747099374012,0.02607358,102640.0,102630.0,1.74536434]
[1747099374220,0.02607273,102640.0,102630.0,1.74636434]
[1747099374459,0.03581514,102640.0,102630.0,1.74636434]
[1747099374674,0.03581514,102640.0,102630.0,1.74736434]
[1747099374894,0.00658848,102640.0,102630.0,1.65151004]
[1747099375132,0.0163306,102640.0,102630.0,1.65151004]
[1747099375580,0.00658848,102640.0,102630.0,1.65151004]
[1747099376086,0.02607263,102640.0,102630.0,1.65151004]
[1747099376262,0.00658848,102640.0,102630.0,1.25151004]
[1747099376454,0.00658848,102640.0,102630.0,1.35700253]
[1747099376883,0.0163306,102640.0,102630.0,1.35700253]
[1747099377045,0.00658848,102640.0,102630.0,1.35700253]
[1747099377451,0.0163306,102640.0,102630.0,1.35700253]
[1747099377658,0.00658848,102640.0,102630.0,1.35700253]
[1747099378265,0.01633051,102640.0,102630.0,1.35700253]
[1747099378472,0.00658848,102640.0,102630.0,1.71154338]
[1747099378675,0.00658848,102640.0,102630.0,1.74569063]
[1747099378884,0.00314612,102650.0,102640.0,0.61082387]
[1747099379086,0.00314612,102650.0,102640.0,1.05310445]
[1747099379288,0.00314612,102650.0,102640.0,1.30367643]
[1747099379487,0.00910797,102660.0,102650.0,0.26960204]
[1747099379691,0.00973747,102690.0,102670.0,0.031]
[1747099379901,0.00014617,102690.0,102680.0,0.92826957]
[1747099380111,0.01962083,102690.0,102680.0,1.02578398]
[1747099380342,0.03909625,102690.0,102680.0,1.02578398]
[1747099380550,0.23385794,102690.0,102680.0,1.00074565]
[1747099380711,0.03909701,102690.0,102680.0,1.01048407]
[1747099380886,0.04409701,102690.0,102680.0,1.0202224]
[1747099381264,0.03909701,102690.0,102680.0,1.0202224]
[1747099381679,0.04409701,102690.0,102680.0,1.0202224]
[1747099381891,0.02462121,102690.0,102680.0,1.0202224]
[1747099382097,0.00514617,102690.0,102680.0,1.28689438]
[1747099382512,0.00514617,102690.0,102680.0,1.30143523]
[1747099382723,0.01114617,102690.0,102680.0,1.70143523]
[1747099383128,0.01114617,102690.0,102680.0,1.36670128]
[1747099383348,0.00514617,102690.0,102680.0,1.36670128]
[1747099383552,0.01488355,102690.0,102680.0,1.36670128]
[1747099383756,0.00988355,102690.0,102680.0,1.36870128]
[1747099383983,0.00988345,102690.0,102680.0,1.36870128]
[1747099384180,0.02935849,102690.0,102680.0,1.54852043]
[1747099384525,0.01962083,102690.0,102680.0,1.32578043]
[1747099384748,0.03909625,102690.0,102680.0,1.32478043]
[1747099385067,0.0293584,102690.0,102680.0,1.32478043]
[1747099385204,0.03909625,102690.0,102680.0,1.32678043]
[1747099385721,0.02935897,102690.0,102680.0,1.29756507]
[1747099385949,0.02935897,102690.0,102680.0,1.31088072]
[1747099386148,0.00014617,102690.0,102680.0,1.43923502]
[1747099386571,0.00988336,102690.0,102680.0,1.43923502]
[1747099386781,0.00590457,102690.0,102680.0,1.43923502]
[1747099387017,0.00590457,102690.0,102680.0,1.689807]
[1747099387224,0.00590457,102690.0,102680.0,1.43923502]
[1747099387437,0.00590457,102690.0,102680.0,1.689807]
[1747099387651,0.00590457,102690.0,102680.0,1.70534785]
[1747099387864,0.01881247,102720.0,102710.0,0.22393059]
[1747099388046,0.04850444,102720.0,102710.0,0.49944927]
[1747099388283,0.24320848,102720.0,102710.0,0.49944927]
[1747099388913,0.23347395,102720.0,102710.0,0.46476699]
[1747099389240,0.23947395,102720.0,102710.0,0.47450257]
[1747099389484,0.2303963,102720.0,102710.0,0.47450257]
[1747099390070,0.00648714,102720.0,102710.0,0.58009235]
[1747099390278,0.00648714,102720.0,102710.0,1.17066433]
[1747099390487,0.00648714,102720.0,102710.0,1.26651863]
[1747099390488,0.01048714,102720.0,102710.0,1.26651863]
[1747099390923,0.00648714,102720.0,102710.0,1.01594665]
[1747099391352,0.0269563,102720.0,102710.0,0.92009235]
[1747099391557,0.02695621,102720.0,102710.0,0.92977028]
[1747099391982,0.01722158,102720.0,102710.0,0.92977028]
[1747099392196,0.0209563,102720.0,102710.0,0.92977028]
[1747099392403,0.0209563,102720.0,102710.0,0.93177037]
[1747099392646,0.0199563,102720.0,102710.0,0.93177037]
[1747099392850,0.01022158,102720.0,102710.0,1.42762467]
[1747099393054,0.00048714,102720.0,102710.0,1.42962467]
[1747099393465,0.00048714,102720.0,102710.0,1.68019665]
[1747099393678,0.00048714,102720.0,102710.0,1.42962467]
[1747099393892,0.00048714,102720.0,102710.0,1.68019665]
[1747099394073,0.00048714,102720.0,102710.0,1.33377037]
[1747099394285,0.00048714,102720.0,102710.0,0.93377037]
[1747099394914,0.00048714,102720.0,102710.0,1.33377037]
[1747099395142,0.00048714,102720.0,102710.0,1.34831122]
[1747099395351,0.00048714,102720.0,102710.0,1.6947375]
[1747099395525,0.00546595,102720.0,102710.0,1.6947375]
[1747099395735,0.00048714,102720.0,102710.0,1.6947375]
[1747099395937,0.00546595,102720.0,102710.0,1.6947375]
[1747099397360,0.00546595,102720.0,102710.0,1.5988832]
[1747099397515,0.00546595,102720.0,102710.0,1.34831122]
[1747099398137,0.00546595,102720.0,102710.0,1.5988832]
[1747099398606,0.00546595,102720.0,102710.0,1.08319839]
[1747099398842,0.21963972,102720.0,102710.0,0.004]
[1747099399627,0.194723,102710.0,102700.0,0.20465217]
[1747099399868,0.21419463,102710.0,102700.0,0.55931358]
[1747099400041,0.21916412,102710.0,102700.0,0.54957649]
[1747099400297,0.21916412,102710.0,102700.0,0.88957649]
[1747099400504,0.21916412,102710.0,102700.0,0.89931358]
[1747099400704,0.03417603,102710.0,102700.0,1.20012657]
[1747099400919,0.04391199,102710.0,102700.0,1.20986309]
[1747099401104,0.03417603,102710.0,102700.0,1.20986309]
[1747099401330,0.04391189,102710.0,102700.0,1.20968931]
[1747099401645,0.04391189,102710.0,102700.0,1.21168931]
[1747099402056,0.23863613,102710.0,102700.0,1.10561914]
[1747099402276,0.2191645,102710.0,102700.0,0.88166628]
[1747099402466,0.2191645,102710.0,102700.0,0.6330943]
[1747099402668,0.2191645,102710.0,102700.0,0.65256839]
[1747099402895,0.2191645,102710.0,102700.0,0.90314037]
[1747099403301,0.2191645,102710.0,102700.0,0.89340337]
[1747099403504,0.2191645,102710.0,102700.0,1.09788233]
[1747099404083,0.2191645,102710.0,102700.0,1.10761923]
[1747099404268,0.2191645,102710.0,102700.0,1.09788233]
[1747099404471,0.2191645,102710.0,102700.0,1.11735604]
[1747099404704,0.2191645,102710.0,102700.0,1.12709256]
[1747099404907,0.03417641,102710.0,102700.0,1.2229462]
[1747099405083,0.02444055,102710.0,102700.0,1.2229462]
[1747099405287,0.03417623,102710.0,102700.0,1.2229462]
[1747099405493,0.03417623,102710.0,102700.0,1.1270919]
[1747099406844,0.052983,102710.0,102700.0,1.1270919]
[1747099407460,0.04324704,102710.0,102700.0,1.1270919]
[1747099408115,0.052983,102710.0,102700.0,1.1270919]
[1747099408327,0.06271905,102710.0,102700.0,1.1270919]
[1747099409233,0.052983,102710.0,102700.0,1.1270919]
[1747099409530,0.04324704,102710.0,102700.0,1.2229462]
[1747099409959,0.03417623,102710.0,102700.0,1.2229462]
[1747099410373,0.00496949,102710.0,102700.0,1.2229462]